{"text_format":"1","workbook":"xlsx","n_sheets":3,"sheets":["Sheet1","Sheet2","Sheet3"],"not_rendered":{"charts":0,"images":0,"macros":1,"external_links":0,"defined_names":0,"comments":0,"pivot_tables":0},"unopened":[],"bounds":{"document_bytes":16777216,"sheet_cells":100000,"rows_first":2000,"rows_last":500,"rows_between":2000,"halvings":0,"cell_chars":16384,"cell_head_chars":4096},"cells_cut":0,"cells_raw":0,"read":"whole","date_system":"1900"}

{"sheet":"Sheet1","index":0,"n_rows":30,"n_cols":22,"rows_kept":30,"cut":false,"hidden":false,"merged":[[25,15,25,17],[25,19,25,21],[0,19,0,21],[0,15,0,17],[0,2,0,7],[0,8,0,12],[12,2,12,7],[12,8,12,12]]}
["Tires Score Comparison",null,"GROUP 1",null,null,null,null,null,"GROUP 2",null,null,null,null,null,null,"GROUP 1 - Count/Sum by color",null,null,null,"GROUP 2 - Count/Sum by color"]
["Brand","Model","Handling","Dry Grip","Wet Grip","Snow Grip","Ice Grip","Group 1 Total","Wear","Road Feedback","Confort","Buy Again","Group 2 Total","GRAND TOTAL",null,"COLOR","COUNT","SUM",null,"COLOR","COUNT","SUM"]
["Yokohama","BlueEarth Winter V905",93,91,94,100,92,{"$f":"SUM(C3:G3)","v":470},92,90,91,null,{"$f":"SUM(I3:L3)","v":273},{"$f":"H3+M3","v":743},null,null,{"$f":"COUNTConditionColorCells($C$3:$G$3,P3)","v":"NO-COLOR"},null,null,null,{"$f":"COUNTConditionColorCells($C$3:$G$3,T3)","v":"NO-COLOR"}]
["BFGoodrich","Gforce Winter 2",89,92,96,100,87,{"$f":"SUM(C4:G4)","v":464},90,89,95,null,{"$f":"SUM(I4:L4)","v":274},{"$f":"H4+M4","v":738},null,null,{"$f":"COUNTConditionColorCells($C$3:$G$3,P4)","v":"NO-COLOR"},null,null,null,{"$f":"COUNTConditionColorCells($C$3:$G$3,T4)","v":"NO-COLOR"}]
["Falken","ZIEX ZE950 A/S",100,95,80,100,80,455,80,90,100,null,270,725,null,null,"NO-COLOR",null,null,null,"NO-COLOR"]
["Michelin","Alpin 6",86,88,93,93,84,444,81,88,90,null,259,703,null,null,"NO-COLOR",null,null,null,"NO-COLOR"]
["Falken","Eurowinter HS449",78,85,87,40,80,370,84,81,84,null,249,619,null,null,"NO-COLOR",null,null,null,"NO-COLOR"]
["Falken","Sincera SN250 All-Season",90,80,70,30,null,270,70,90,50,null,210,480,null,null,"NO-COLOR",null,null,null,"NO-COLOR"]
["Falken","ZIEX ZE001 AS",70,70,80,null,null,220,30,80,80,null,190,410,null,null,"NO-COLOR",null,null,null,"NO-COLOR"]
["Falken","ZIEX CT50 All-Season",80,80,10,null,null,170,10,80,70,null,160,330,null,null,"NO-COLOR",null,null,null,"NO-COLOR"]
["Falken","Sincera SN201 All-Season",null,null,null,null,null,0,null,null,null,null,0,0,null,null,"NO-COLOR",null,null,null,"NO-COLOR"]
["Falken","ZIEX CT60 All-Season",null,null,null,null,null,0,null,null,null,null,0,0,null,null,"NO-COLOR",null,null,null,"NO-COLOR"]
[null,null,"GROUP 1",null,null,null,null,null,"GROUP 2"]
[]
[]
[]
[]
[null,null,null,null,null,null,null,null,null,null,null,null,null,null,null,"This is the area where is neede to show how many cells per row have CF"]
[null,null,null,null,null,null,null,null,null,null,null,null,null,null,null," and then sum the values of those CF cells"]
[]
[]
[]
[]
[null,null,null,null,null,null,null,null,null,null,null,null,null,null,null,"Here is an example of how the first three rows should look like:"]
[]
[null,null,null,null,null,null,null,null,null,null,null,null,null,null,null,"GROUP 1 - Count/Sum by color",null,null,null,"GROUP 2 - Count/Sum by color"]
[null,null,null,null,null,null,null,null,null,null,null,null,null,null,null,"COLOR","COUNT","SUM",null,"COLOR","COUNT","SUM"]
[null,null,null,null,null,null,null,null,null,null,null,null,null,null,null,null,2,192,null,null,2,182]
[null,null,null,null,null,null,null,null,null,null,null,null,null,null,null,null,2,196,null,null,0,0]
[null,null,null,null,null,null,null,null,null,null,null,null,null,null,null,null,3,375,null,null,2,190]

{"sheet":"Sheet2","index":1,"n_rows":0,"n_cols":0,"rows_kept":0,"cut":false,"hidden":false,"merged":[]}

{"sheet":"Sheet3","index":2,"n_rows":0,"n_cols":0,"rows_kept":0,"cut":false,"hidden":false,"merged":[]}